fUSD/lending_fUSD_20241226
["ID","MTS","AMOUNT","RATE_DAILY","PERIOD"]
[346681553,1735175446472,-150.0,0.00012886,2]
[346681554,1735175446482,-150.0,0.00012887,2]
[346681555,1735175446491,-679.47123061,0.00012892,2]
[346681556,1735175446516,-820.52876939,0.00012892,2]
[346681557,1735175446525,-150.0,0.00012893,2]
[346681558,1735175446534,-1500.0,0.00012893,2]
[346681559,1735175446543,-150.0,0.00012895,2]
[346681560,1735175446553,-150.0,0.00012898,2]
[346681561,1735175446562,-150.0,0.00012899,2]
[346681562,1735175446571,-186.9266896,0.000129,2]
[346681563,1735175446580,-150.0,0.00012901,2]
[346681564,1735175446589,-95.59789528,0.00012902,2]
[346681590,1735175942632,3582.0,0.00021,120]
[346681637,1735176102357,200000.0,0.00021,120]
[346681663,1735176632218,-307.51,0.00010037,2]
[346681664,1735176632228,-1000.0,0.00011694,2]
[346681665,1735176632238,-13287.97,0.0001171,2]
[346681666,1735176632247,-250.0,0.00011761,2]
[346681667,1735176632256,-543.84,0.00011781,2]
[346681668,1735176632266,-1500.0,0.00011791,2]
[346681669,1735176632276,-1051.73596346,0.00011807,2]
[346681670,1735176632287,-2667.65403654,0.00011807,2]
[346681671,1735176632296,-250.0,0.0001181,2]
[346681672,1735176632305,-211.12,0.00011817,2]
[346681673,1735176632315,-242.6,0.0001182,2]
[346681674,1735176632324,-303.98,0.00011825,2]
[346681675,1735176632333,-183.98,0.00011827,2]
[346681676,1735176632342,-20000.0,0.00012,2]
[346681677,1735176632351,-167.55,0.00012162,2]
[346681678,1735176632360,-169.81,0.0001223,2]
[346681679,1735176632369,-307.51,0.00012301,2]
[346681680,1735176632381,-242.85892557,0.0001235,2]
[346681681,1735176632393,-153.31607443,0.0001235,2]
[346681682,1735176632402,-140.76085192,0.00012378,2]
[346681683,1735176632413,-298.72914808,0.00012378,2]
[346681684,1735176632422,-150.0,0.00012478,2]
[346681685,1735176632431,-150.0,0.00012478,2]
[346681686,1735176632440,-80.54768012,0.00012478,2]
[346681687,1735176632451,-69.45231988,0.00012478,2]
[346681688,1735176632461,-436.48,0.00012478,2]
[346681689,1735176632470,-124.18914892,0.00012478,2]
[346681690,1735176632482,-441.46626179,0.00012478,2]
[346681691,1735176632493,-412.06458929,0.00012478,2]
[346681692,1735176632502,-300.0,0.00012478,2]
[346681693,1735176632511,-977.72,0.00012478,2]
[346681694,1735176632520,-150.0,0.00012478,2]
[346681695,1735176632529,-150.0,0.00012478,2]
[346681696,1735176632538,-150.0,0.00012478,2]
[346681697,1735176632547,-436.48,0.00012478,2]
[346681698,1735176632556,-150.0,0.00012478,2]
[346681699,1735176632565,-977.72,0.00012478,2]
[346681700,1735176632574,-436.48,0.00012478,2]
[346681701,1735176632583,-150.0,0.00012478,2]
[346681702,1735176632592,-150.0,0.00012478,2]
[346681703,1735176632601,-150.0,0.00012478,2]
[346681704,1735176632610,-150.0,0.00012478,2]
[346681705,1735176632619,-150.0,0.00012478,2]
[346681706,1735176632629,-977.72,0.00012478,2]
[346681707,1735176632638,-436.48,0.00012478,2]
[346681708,1735176632648,-436.48,0.00012478,2]
[346681709,1735176632658,-150.0,0.00012478,2]
[346681710,1735176632667,-12.36626414,0.00012478,2]
[346681711,1735176632721,-137.63373586,0.00012478,2]
[346681712,1735176632730,-977.72,0.00012478,2]
[346681713,1735176632739,-83.92330401,0.00012478,2]
[346681758,1735176638345,-352.55669599,0.00012478,2]
[346681759,1735176638354,-636.1,0.00012478,2]
[346681760,1735176638363,-436.48,0.00012478,2]
[346681761,1735176638373,-436.48,0.00012478,2]
[346681762,1735176638383,-353.0,0.000127,2]
[346681763,1735176638393,-3745.21271016,0.000127,2]
[346681764,1735176638405,-3609.7597534,0.000127,2]
[346681765,1735176638416,-3655.23937567,0.000127,2]
[346681766,1735176638428,-1943.46898318,0.000127,2]
[346681770,1735176638477,-378.2703626,0.000127,2]
[346681771,1735176638487,-16.16049234,0.00012739,2]
[346681772,1735176638498,-199.55298863,0.00012739,2]
[346681773,1735176638507,-1953.9954,0.0001277,2]
[346681774,1735176638517,-737.57,0.000128,2]
[346681775,1735176638526,-300.0,0.000128,2]
[346681776,1735176638535,-300.0,0.000128,4]
[346681777,1735176638544,-300.0,0.000128,5]
[346681778,1735176638554,-2276.06441112,0.000128,2]
[346681779,1735176638562,-781.94782334,0.000128,2]
[346681781,1735176640260,-259.41264167,0.000128,2]
[346681782,1735176640399,-1000.0,0.000128,2]
[346681783,1735176640412,-432.19923863,0.000128,2]
[346681784,1735176640423,-1043.24821247,0.000128,2]
[346681785,1735176640548,-500.0,0.000128,2]
[346681786,1735176640561,-521.255,0.000128,2]
[346681787,1735176640573,-1978.0549254,0.000128,2]
[346681788,1735176640585,-571.33144562,0.000128,2]
[346681802,1735176643475,-262.47,0.000128,2]
[346681803,1735176643486,-500.0,0.000128,2]
[346681804,1735176643604,-507.3247813,0.000128,2]
[346681805,1735176643615,-502.48680003,0.000128,2]
[346681806,1735176643756,-11330.06199924,0.000128,2]
[346681823,1735176646224,-3173.4500005,0.000128,2]
[346681825,1735176646236,-807.05547,0.000128,2]
[346681830,1735176646352,-3089.9999995,0.000128,2]
[346681831,1735176646363,-6953.99999998,0.000128,2]
[346681832,1735176646375,-342.48,0.000128,2]
[346681833,1735176846042,500.0,9.069e-05,2]
[346681834,1735176846065,500.0,9.069e-05,2]
[346681835,1735176851703,10000.0,9.065e-05,2]
[346681836,1735176861481,6153.0,9.065e-05,2]
[346681841,1735177784568,1000.0,0.00021,120]
[346681851,1735177832676,-9000.0,9.069e-05,2]
[346681852,1735177832686,-311.54,9.793e-05,2]
[346681853,1735177832694,-322.85,0.00011682,2]
[346681854,1735177832703,-301.92,0.00011712,2]
[346681855,1735177832713,-300.0,0.00011712,2]
[346681856,1735177832722,-250.0,0.00011713,2]
[346681857,1735177832731,-2000.0,0.00011716,2]
[346681859,1735177832739,-9903.79016496,0.0001172,2]
[346681861,1735177832751,-105.39983504,0.0001172,2]
[346681863,1735177832760,-355.34016496,0.00011724,2]
[346681865,1735177832771,-305.33042154,0.00011724,2]
[346681867,1735177832782,-339.3294135,0.00011724,2]
[346681869,1735177832791,-183.4706065,0.00011774,2]
[346681871,1735177832801,-66.5293935,0.00011774,2]
[346681873,1735177832811,-629.39,0.00011799,2]
[346681875,1735177832820,-500.94493357,0.00011983,2]
[346681877,1735177832830,-201.03372149,0.00012057,2]
[346681880,1735177832843,-110.50627851,0.00012057,2]
[346681882,1735177832852,-167.99,0.0001214,2]
[346681884,1735177832861,-502.83371899,0.00012165,2]
[346681886,1735177832872,-619.7112904,0.00012165,2]
[346681894,1735177832941,-922.243665,0.00012165,2]
[346681896,1735177832952,-796.91198377,0.00012165,2]
[346681899,1735177832968,-1197.2406464,0.00012165,2]
[346681901,1735177832979,-8718.16277065,0.00012165,2]
[346681903,1735177832990,-10154.05722025,0.00012165,2]
[346681905,1735177833001,-623.18877002,0.00012165,2]
[346681908,1735177833012,-495.07637835,0.00012165,2]
[346681910,1735177833024,-750.17897989,0.00012165,2]
[346681926,1735177838276,-465.401043,0.00012165,2]
[346681927,1735177838289,-735.15365519,0.00012165,2]
[346681928,1735177838301,-4019.83987809,0.00012165,2]
[346681929,1735177838310,-4936.26012191,0.00012165,2]
[346681930,1735177838447,-1944.0,0.00012165,2]
[346681931,1735177838460,-130.91332054,0.00012165,2]
[346681932,1735177838469,-436.52,0.00012192,2]
[346681933,1735177838479,-129.55610151,0.000122,2]
[346681934,1735177838626,-306.96389849,0.000122,2]
[346681935,1735177838637,-407.932,0.0001235,2]
[346681936,1735177838646,-322.34219121,0.00012399,2]
[346681937,1735177838656,-436.52,0.000124,2]
[346681938,1735177838665,-1985.27,0.000124,2]
[346681939,1735177838677,-436.35,0.000125,2]
[346681940,1735177838687,-262.51,0.000126,2]
[346681941,1735177838696,-150.0,0.00012611,2]
[346681942,1735177838706,-150.0,0.00012644,2]
[346681943,1735177838717,-150.0,0.00012646,2]
[346681944,1735177838727,-298.4170667,0.00012709,2]
[346681945,1735177838736,-150.0,0.00012711,2]
[346681946,1735177838746,-150.0,0.00012712,2]
[346681947,1735177838756,-150.0,0.00012715,2]
[346681948,1735177838765,-150.0,0.00012716,2]
[346681949,1735177838774,-1500.0,0.00012719,2]
[346681950,1735177838783,-150.0,0.00012725,2]
[346681951,1735177838793,-489.07745988,0.00012725,2]
[346681952,1735177838803,-150.0,0.00012731,2]
[346681953,1735177838812,-150.0,0.00012731,2]
[346681954,1735177838822,-150.0,0.00012734,2]
[346681955,1735177838832,-150.0,0.00012735,2]
[346681956,1735177838842,-150.0,0.00012737,2]
[346681957,1735177838851,-153.28567617,0.0001274,2]
[346681958,1735177838861,-150.0,0.00012741,2]
[346681959,1735177838870,-150.0,0.00012741,2]
[346681960,1735177838879,-150.0,0.00012741,2]
[346681961,1735177838889,-150.0,0.00012742,2]
[346681962,1735177838899,-150.0,0.00012743,2]
[346681963,1735177838908,-150.0,0.00012743,2]
[346681964,1735177838918,-150.0,0.00012744,2]
[346681965,1735177838927,-489.07745987,0.00012744,2]
[346681966,1735177838936,-150.0,0.00012746,2]
[346681967,1735177838945,-150.0,0.00012746,2]
[346681968,1735177838954,-150.0,0.00012747,2]
[346681969,1735177838964,-150.0,0.00012748,2]
[346681970,1735177838974,-150.0,0.00012748,2]
[346681971,1735177838983,-150.0,0.00012754,2]
[346681972,1735177838992,-1500.0,0.00012757,2]
[346681973,1735177839002,-150.0,0.0001276,2]
[346681974,1735177839011,-150.0,0.0001276,2]
[346681975,1735177839021,-489.07745987,0.00012764,2]
[346681976,1735177839030,-150.0,0.00012765,2]
[346681977,1735177839039,-150.0,0.00012767,2]
[346681978,1735177839049,-150.0,0.00012769,2]
[346681979,1735177839058,-153.96849825,0.0001277,2]
[346681980,1735177839068,-1500.0,0.00012771,2]
[346681981,1735177839077,-1500.0,0.00012772,2]
[346681982,1735177839087,-150.0,0.00012775,2]
[346681983,1735177839096,-150.0,0.00012776,2]
[346681984,1735177839105,-150.0,0.00012777,2]
[346681985,1735177839114,-1500.0,0.00012777,2]
[346681986,1735177839123,-150.0,0.00012779,2]
[346681987,1735177839133,-1500.0,0.00012779,2]
[346681988,1735177839142,-2872.24098974,0.00012779,2]
[346681989,1735177839155,-15376.9672998,0.00012779,2]
[346681990,1735177839170,-361.37125032,0.00012779,2]
[346681991,1735177839181,-3497.6150036,0.00012779,2]
[346681992,1735177840280,-4041.50076137,0.00012779,2]
[346681993,1735177840434,-347.86,0.00012779,2]
[346681994,1735177840446,-1272.5779999,0.00012779,2]
[346681995,1735177840458,-1362.39004,0.00012779,2]
[346681996,1735177840469,-499.63985511,0.00012779,2]
[346681997,1735177840480,-500.0,0.00012779,2]
[346681998,1735177840574,-72468.8316855,0.00012779,2]
[346681999,1735177840584,-8517.22191788,0.0001278,2]
[346682000,1735177840595,-1500.0,0.0001278,2]
[346682001,1735177840605,-150.0,0.0001278,2]
[346682002,1735177840615,-1500.0,0.00012781,2]
[346682003,1735177840625,-489.07745987,0.00012783,2]
[346682004,1735177840635,-150.0,0.00012786,2]
[346682005,1735177840646,-150.0,0.00012787,2]
[346682006,1735177840655,-150.0,0.00012788,2]
[346682007,1735177840664,-150.0,0.0001279,2]
[346682008,1735177840675,-1500.0,0.0001279,2]
[346682009,1735177840684,-150.0,0.00012791,2]
[346682010,1735177840693,-150.0,0.00012793,2]
[346682011,1735177840703,-150.0,0.00012794,2]
[346682012,1735177840712,-150.0,0.00012796,2]
[346682013,1735177840721,-150.0,0.00012797,2]
[346682014,1735177840731,-2000.0,0.00012799,2]
[346682015,1735177840740,-200.0,0.00012799,2]
[346682016,1735177840749,-180.0459,0.000128,2]
[346682017,1735177840759,-342.65056035,0.000128,2]
[346682018,1735177840768,-1782.31093072,0.000128,2]
[346682019,1735177840780,-1911.56796928,0.000128,2]
[346682020,1735177840789,-6.12095707,0.000128,2]
[346682021,1735177840802,-2993.87904293,0.000128,2]
[346682022,1735177840811,-150.0,0.00012801,2]
[346682023,1735177840820,-150.0,0.00012802,2]
[346682024,1735177840830,-1500.0,0.00012802,2]
[346682025,1735177840839,-150.0,0.00012802,2]
[346682026,1735177840848,-489.07745987,0.00012803,2]
[346682027,1735177840857,-575.3184172,0.00012803,2]
[346682028,1735177840869,-673.28091224,0.00012803,2]
[346682029,1735177840880,-251.40067056,0.00012803,2]
[346682031,1735177840890,-11.11933044,0.00012804,2]
[346682033,1735177840902,-138.88066956,0.00012804,2]
[346682035,1735177840911,-583.40600719,0.00012805,2]
[346682048,1735177841026,-854.04481061,0.00012805,2]
[346682259,1735177843255,-1845.66805756,0.00012805,2]
[346682261,1735177843268,-1192.20706,0.00012805,2]
[346682263,1735177843280,-26059.88526325,0.00012805,2]
[346682265,1735177843290,-1500.0,0.00012809,2]
[346682269,1735177843299,-150.0,0.00012813,2]
[346682272,1735177843309,-150.73507491,0.00012814,2]
[346682276,1735177843318,-150.0,0.00012816,2]
[346682278,1735177843327,-150.0,0.0001282,2]
[346682281,1735177843336,-159.213,0.0001282,2]
[346682283,1735177843345,-150.0,0.0001282,2]
[346682285,1735177843353,-150.0,0.00012821,2]
[346682286,1735177843362,-150.0,0.00012821,2]
[346682288,1735177843371,-150.0,0.00012821,2]
[346682290,1735177843380,-812.0,0.00012822,2]
[346682292,1735177843389,-150.0,0.00012822,2]
[346682294,1735177843398,-489.07745987,0.00012822,2]
[346682295,1735177843407,-150.0,0.00012823,2]
[346682297,1735177843416,-150.0,0.00012823,2]
[346682299,1735177843426,-150.0,0.00012825,2]
[346682301,1735177843435,-1500.0,0.00012825,2]
[346682303,1735177843444,-150.0,0.00012825,2]
[346682305,1735177843453,-150.0,0.00012826,2]
[346682307,1735177843462,-150.0,0.00012826,2]
[346682308,1735177843471,-150.0,0.00012833,2]
[346682310,1735177843480,-150.0,0.00012836,2]
[346682312,1735177843489,-150.0,0.00012839,2]
[346682314,1735177843498,-1127.02295649,0.00012839,2]
[346682316,1735177843507,-489.07745987,0.00012842,2]
[346682318,1735177843516,-150.0,0.00012844,2]
[346682320,1735177843526,-150.0,0.00012846,2]
[346682322,1735177843535,-150.0,0.00012849,2]
[346682324,1735177843544,-150.0,0.00012849,2]
[346682326,1735177843553,-150.0,0.00012851,2]
[346682327,1735177843562,-150.0,0.00012852,2]
[346682329,1735177843571,-150.0,0.00012853,2]
[346682331,1735177843580,-150.0,0.00012857,2]
[346682333,1735177843589,-150.0,0.00012857,2]
[346682335,1735177843602,-150.0,0.00012859,2]
[346682337,1735177843612,-489.07745987,0.00012861,2]
[346682339,1735177843622,-150.0,0.00012863,2]
[346682341,1735177843632,-150.0,0.00012864,2]
[346682342,1735177843640,-150.0,0.00012866,2]
[346682344,1735177843649,-153.63917542,0.00012867,2]
[346682346,1735177843658,-150.0,0.00012871,2]
[346682348,1735177843667,-150.0,0.00012871,2]
[346682350,1735177843676,-150.0,0.00012872,2]
[346682352,1735177843685,-2001.425,0.00012873,2]
[346682353,1735177843694,-242.49476142,0.00012873,2]
[346682355,1735177843703,-150.0,0.00012873,2]
[346682357,1735177843712,-150.0,0.00012873,2]
[346682359,1735177843721,-150.0,0.00012874,2]
[346682361,1735177843731,-150.0,0.0001288,2]
[346682363,1735177843739,-489.07745987,0.00012881,2]
[346682365,1735177843749,-1511.72123554,0.00012881,2]
[346682367,1735177843758,-150.0,0.00012882,2]
[346682368,1735177843767,-150.0,0.00012885,2]
[346682370,1735177843776,-150.0,0.00012888,2]
[346682372,1735177843785,-150.0,0.00012893,2]
[346682374,1735177843794,-150.0,0.00012895,2]
[346682376,1735177843803,-150.0,0.00012896,2]
[346682378,1735177843812,-1500.0,0.00012898,2]
[346682380,1735177843822,-1000.0,0.00012899,2]
[346682382,1735177843831,-1635.55369349,0.000129,2]
[346682384,1735177843843,-1248.21483675,0.000129,2]
[346682386,1735177843854,-11959.88716976,0.000129,2]
[346682388,1735177843863,-5482.125,0.000129,2]
[346682390,1735177843872,-7897.378,0.000129,2]
[346682391,1735177843882,-5240.38983024,0.000129,2]
[346682409,1735177844188,-989.23847031,0.000129,2]
[346682411,1735177844199,-1104.77514956,0.000129,2]
[346682413,1735177844210,-365.7149734,0.000129,2]
[346682416,1735177844222,-429.26652671,0.000129,2]
[346682425,1735177844294,-4836.0,0.000129,2]
[346682427,1735177844305,-830.14209626,0.000129,2]
[346682429,1735177844316,-1207.39884001,0.000129,2]
[346682431,1735177844327,-1273.949995,0.000129,2]
[346682433,1735177844339,-692.93735454,0.000129,2]
[346682435,1735177844348,-300.0,0.000129,2]
[346682437,1735177844357,-300.0,0.000129,4]
[346682439,1735177844366,-300.0,0.000129,4]
[346682441,1735177844375,-300.0,0.000129,4]
[346682443,1735177844385,-250.0,0.000129,4]
[346682445,1735177844394,-250.0,0.000129,2]
[346682447,1735177844403,-249.94,0.000129,2]
[346682449,1735177844412,-293.58277571,0.000129,2]
[346682452,1735177844424,-4328.16172429,0.000129,2]
[346682454,1735177844434,-191.27017507,0.000129,2]
[346682455,1735177844443,-5000.0,0.000129,2]
[346682458,1735177844452,-150.0,0.000129,2]
[346682459,1735177844461,-489.07745987,0.000129,2]
[346682461,1735177844470,-209.0807,0.000129,2]
[346682463,1735177844479,-2490.62519207,0.000129,2]
[346682465,1735177844488,-525.39478059,0.000129,2]
[346682468,1735177844497,-2276.06441113,0.000129,2]
[346682469,1735177844506,-1500.0,0.00012901,2]
[346682471,1735177844516,-150.0,0.00012901,2]
[346682473,1735177844525,-54.40210472,0.00012902,2]
[346682476,1735177844534,-150.0,0.00012905,2]
[346682477,1735177844543,-150.0,0.00012906,2]
[346682479,1735177844552,-150.0,0.00012909,2]
[346682481,1735177844562,-200.0,0.00012913,2]
[346682484,1735177844571,-460.08751727,0.00012915,2]
[346682485,1735177844581,-150.0,0.00012919,2]
[346682487,1735177844591,-150.0,0.00012921,2]
[346682489,1735177844605,-150.0,0.00012921,2]
[346682492,1735177844616,-150.0,0.00012921,2]
[346682494,1735177844626,-1500.0,0.00012924,2]
[346682496,1735177844635,-150.0,0.00012926,2]
[346682498,1735177844645,-150.0,0.00012931,2]
[346682500,1735177844654,-150.0,0.00012931,2]
[346682502,1735177844663,-1500.0,0.00012931,2]
[346682504,1735177844672,-460.08751727,0.00012933,2]
[346682506,1735177844682,-460.08751727,0.00012934,2]
[346682507,1735177844691,-150.0,0.00012936,2]
[346682510,1735177844701,-150.0,0.00012937,2]
[346682512,1735177844710,-460.08751727,0.00012938,2]
[346682514,1735177844719,-150.0,0.00012938,2]
[346682516,1735177844728,-150.0,0.0001294,2]
[346682517,1735177844737,-460.08751727,0.00012941,2]
[346682519,1735177844746,-150.0,0.00012941,2]
[346682521,1735177844755,-200.0,0.00012942,2]
[346682523,1735177844764,-200.0,0.00012944,2]
[346682526,1735177844773,-150.0,0.00012945,2]
[346682527,1735177844783,-150.0,0.00012948,2]
[346682530,1735177844792,-460.08751727,0.00012949,2]
[346682531,1735177844801,-150.0,0.00012951,2]
[346682533,1735177844810,-150.0,0.00012952,2]
[346682535,1735177844819,-150.0,0.00012957,2]
[346682537,1735177844828,-150.0,0.00012959,2]
[346682539,1735177844838,-150.0,0.0001296,2]
[346682541,1735177844847,-150.0,0.00012964,2]
[346682543,1735177844856,-150.0,0.00012965,2]
[346682545,1735177844865,-150.0,0.00012965,2]
[346682547,1735177844875,-150.0,0.00012972,2]
[346682549,1735177844883,-150.0,0.00012976,2]
[346682551,1735177844892,-1500.0,0.00012978,2]
[346682553,1735177844902,-150.0,0.00012981,2]
[346682555,1735177844913,-197.14513969,0.0001299,2]
[346682557,1735177844922,-995.1146811,0.00012996,2]
[346682559,1735177844931,-183.0451839,0.00012999,2]
[346682561,1735177844941,-500.0,0.00012999,2]
[346682564,1735177844950,-459971.45377414,0.00013,2]
[346682574,1735177845041,-416.43959476,0.00013,2]
[346682711,1735177846443,-335.34502768,0.00013,2]
[346682713,1735177846455,-501.771067,0.00013,2]
[346682716,1735177846467,-2224.45134135,0.00013,2]
[346682718,1735177846478,-307.05478231,0.00013,2]
[346682745,1735177846735,-59156.774,0.00013,2]
[346682748,1735177846748,-504.07526865,0.00013,2]
[346682750,1735177846759,-407.82269628,0.00013,2]
[346682752,1735177846770,-361915.91930268,0.00013,2]
[346682756,1735177846798,-266.39477752,0.00013,2]
[346682759,1735177846848,-1076.24944658,0.00013,2]
[346682760,1735177846859,-63852.57595984,0.00013,2]
[346682772,1735178194167,46879.0,0.00021,120]
[346682773,1735178243157,2848.36143,0.00021,120]
[346682774,1735178663959,1000.0,0.00021,120]
[346682775,1735178814142,-208.49743288,0.00010137,2]
[346682782,1735179032534,-145.95256712,0.00010137,2]
[346682783,1735179032544,-314.61,0.000103,2]
[346682785,1735179032554,-200.84,0.00010637,2]
[346682786,1735179032563,-201.86,0.00010637,2]
[346682787,1735179032572,-202.47,0.00010637,2]
[346682788,1735179032582,-202.38,0.00010637,2]
[346682790,1735179032591,-201.21,0.00010637,2]
[346682791,1735179032600,-201.85,0.00010637,2]
[346682792,1735179032610,-202.14,0.00010637,2]
[346682793,1735179032619,-203.52,0.00010637,2]
[346682794,1735179032629,-200.0,0.0001187,2]
[346682795,1735179032638,-218.28,0.00011881,2]
[346682796,1735179032647,-250.0,0.00012038,2]
[346682797,1735179032657,-264.99,0.00012105,2]
[346682798,1735179032666,-436.52,0.000122,2]
[346682799,1735179032675,-1541.4,0.000122,2]
[346682800,1735179032685,-436.52,0.000122,2]
[346682801,1735179032694,-436.52,0.000122,2]
[346682802,1735179032703,-439.35,0.000122,2]
[346682803,1735179032712,-1000.0,0.0001221,2]
[346682804,1735179032722,-613.64,0.00012231,2]
[346682805,1735179032731,-250.0,0.00012305,2]
[346682806,1735179032740,-432.037,0.0001235,2]
[346682807,1735179032749,-436.52,0.00012378,2]
[346682808,1735179032758,-872.36,0.00012478,2]
[346682809,1735179032767,-314.61,0.00012563,2]
[346682810,1735179032776,-9636.107,0.00012577,2]
[346682811,1735179032785,-1000.0,0.00012722,2]
[346682812,1735179032795,-150.0,0.00012825,2]
[346682813,1735179032804,-322.34219121,0.00012867,2]
[346682814,1735179032814,-3000.0,0.0001287,2]
[346682815,1735179032823,-205.17020264,0.00012899,2]
[346682816,1735179032835,-290.99853347,0.00012899,2]
[346682817,1735179032847,-617.12435028,0.00012899,2]
[346682818,1735179032856,-4514.2083097,0.00012899,2]
[346682819,1735179032868,-2875.9387323,0.00012899,2]
[346682820,1735179032877,-206.0008416,0.000129,2]
[346682821,1735179032886,-207.79315923,0.000129,2]
[346682822,1735179032895,-590.80669033,0.000129,2]
[346682823,1735179032906,-1664.48430967,0.000129,2]
[346682824,1735179032915,-193.072,0.000129,2]
[346682825,1735179032925,-5000.0,0.000129,2]
[346682826,1735179032934,-158.94018381,0.000129,2]
[346682827,1735179032943,-350.26318706,0.000129,2]
[346682828,1735179032952,-965.99536448,0.000129,2]
[346682829,1735179032961,-198.207233,0.0001299,2]
[346682830,1735179032972,-430.47508972,0.00012999,2]
[346682831,1735179032981,-733.0,0.00013,2]
[346682832,1735179032990,-50339.53798613,0.00013,2]
[346682833,1735179032999,-1436.12049487,0.00013,2]
[346682834,1735179033009,-186892.14748711,0.00013,2]
[346682835,1735179033478,-3799.37093081,0.00013,2]
[346682836,1735179036742,-1162.63548311,0.000129,2]
[346682837,1735179036754,-1407.06112803,0.000129,2]
[346682838,1735179036766,-947.31015434,0.000129,2]
[346682839,1735179036777,-4793.7,0.000129,2]
[346682840,1735179036788,-7226.49234053,0.000129,2]
[346682841,1735179036801,-4986.9528359,0.000129,2]
[346682842,1735179036810,-181616.79192542,0.00013,2]
[346682843,1735179036822,-610.56,0.00013,2]
[346682851,1735179038533,-6018.51999887,0.00013,2]
[346682852,1735179038546,-757.25070126,0.00013,2]
[346682853,1735179038558,-6526.06572285,0.00013,2]
[346682854,1735179038569,-312.27156458,0.00013,2]
[346682855,1735179038580,-446.94078958,0.00013,2]
[346682856,1735179038591,-308.20929254,0.00013,2]
[346682857,1735179038602,-519.07829482,0.00013,2]
[346682858,1735179038724,-509.55688897,0.00013,2]
[346682861,1735179038736,-2629.70107965,0.00013,2]
[346682863,1735179038749,-433.33194209,0.00013,2]
[346682865,1735179038760,-117214.66368903,0.00013,2]
[346682867,1735179038772,-4677.82886025,0.00013,2]
[346682870,1735179038785,-511.90603702,0.00013,2]
[346682872,1735179038796,-654.50000212,0.00013,2]
[346683043,1735179040489,-499.38000045,0.00013,2]
[346683060,1735179040662,-346.35000001,0.00013,2]
[346683061,1735179040673,-440.11171742,0.00013,2]
[346683063,1735179040684,-3795.15533901,0.00013,2]
[346683066,1735179040703,-4927.23480549,0.00013,2]
[346683078,1735179040846,-30436.98063951,0.00013,2]
[346683080,1735179040857,-477.77506,0.00013,2]
[346683082,1735179040868,-1902.57995286,0.00013,2]
[346683084,1735179040880,-607.46602351,0.00013,2]
[346683415,1735179044293,-4716.8462364,0.00013,2]
[346683661,1735179046673,-746.0,0.00013,2]
[346683686,1735179046895,-47290.14924,0.00013,2]
[346683692,1735179046948,-1108.25808611,0.00013,2]
[346683694,1735179046959,-2322.38621635,0.00013,2]
[346683696,1735179046971,-6931.00917446,0.00013,2]
[346683705,1735179047043,-18025.03468413,0.00013,2]
[346684644,1735179062552,5373.09472381,9.781e-05,7]
[346684646,1735179804491,-371.63,9.799e-05,2]
[346684647,1735179804514,-230.28,0.00010137,2]
[346684648,1735179804535,-150.0,0.00011656,2]
[346684649,1735179804559,-300.0,0.00011679,2]
[346684650,1735179828330,10000.0,0.00021,120]
[346684651,1735179828660,-7982.09,0.0001168,2]
[346684652,1735179895745,15635.0,0.00021,120]